Workbook

Sheet Pasiūlymas
A1: Perkantysis subjektas, kuriam teikiamas pasiūlymas: | C1: VŠĮ Kauno klinikinė ligoninė
B3: PASIŪLYMAS
B4: Medikamentai perkami Ne per CPO elektroninį katalogą
A6: Data: | B6: 2020-01-02
A7: Nr.: | B7: Nr. 02/01/20
A8: Vieta: | B8: Širvintų r. sav.
A10: Tiekėjo arba tiekėjų grupės narių pavadinimas (-ai) | C10: UAB Entafarma
A11: Tiekėjo arba tiekėjo grupės narių juridinio asmens kodas (-ai) (tuo atveju, jei pasiūlymą teikia fizinis asmuo - verslo pažymėjimo Nr. ar pan.) | C11: 174443844
A12: Tiekėjo arba tiekėjo grupės narių PVM mokėtojo kodas (-ai) | C12: LT744438415
A13: Tiekėjų grupės narys, atstovaujantis arba vadovaujantis tiekėjų grupei (pildoma, jei pasiūlymą teikia tiekėjų grupė)
A14: Tiekėjo valdymo ar priežiūros organo narys (-iai) ar kitas asmuo (-ys), turintis (-ys) teisę atstovauti tiekėjui ar jį kontroliuoti, jo vardu priimti sprendimą, sudaryti sandorį | C14: Aurimas Kirkliauskas konkursų skyriaus vadovas
A15: Tiekėjo arba atstovaujančio tiekėjų grupės nario adresas, telefono numeris, fakso numeris, el. paštas | C15: 8-382 33005, 8-382 33005, aurimas@entafarma.lt
A16: Tiekėjo arba atstovaujančio tiekėjų grupės nario banko pavadinimas, banko kodas, sąskaitos Nr. | C16: AB SEB bankas., b.k. 70440, LT447044060001506395
A17: Asmens, įgalioto pasirašyti sutartį, vardas, pavardė, pareigos | C17: Mindaugas Malinauskas vykdomasis direktorius
A18: Asmens, atsakingo už pirkimą, vardas, pavardė, telefono numeris, el. paštas | C18: Aurimas Kirkliauskas konkursų skyriaus vadovas
A24: Siūlomas pirkimo objektas visiškai atitinka pirkimo sąlygose nustatytus reikalavimus ir jo kaina yra:
A28: Nr. | B28: Pavadinimas | C28: Kiekis | D28: Mato vienetas | E28: Kaina be PVM, Eur | F28: Suma be PVM, Eur | G28: Siūlomi produktai
A29: 1. | B29: 1ml geriamųjų lašų yra Vaistinio valerijonų šaknų 1,2g sukatžolų žolės 1,2g, appynių spurgų 0,8g, pipirmėtės lapų 0,8g
A30: 1.1. | B30: 1ml geriamųjų lašų yra Vaistinio valerijonų šaknų 1,2g sukatžolų žolės 1,2g, appynių spurgų 0,8g, pipirmėtės lapų 0,8g | C30: 3000 | D30: ml | F30: =IF(ISBLANK(E30),"", PRODUCT(C30,E30)) -> 
E31: Suma be PVM | F31: =IF(F30="","",SUM(F30:F30)) ->  | G31: =IF(F30="","Neužpildytos visos objektų kainos","") -> Neužpildytos visos objektų kainos
E32: PVM suma
E33: Suma su PVM | F33: =IF(ISBLANK(F32), "", SUM(F31:F32)) -> 
A35: 2. | B35: Acetilsalicilo rūgštis 240mg + Paracetamolis 180mg+ Kofeinas 30mg tab.
A36: 2.1. | B36: Acetilsalicilo rūgštis 240mg + Paracetamolis 180mg+ Kofeinas 30mg tab. | C36: 100 | D36: Tab. | F36: =IF(ISBLANK(E36),"", PRODUCT(C36,E36)) -> 
E37: Suma be PVM | F37: =IF(F36="","",SUM(F36:F36)) ->  | G37: =IF(F36="","Neužpildytos visos objektų kainos","") -> Neužpildytos visos objektų kainos
E38: PVM suma
E39: Suma su PVM | F39: =IF(ISBLANK(F38), "", SUM(F37:F38)) -> 
A41: 3. | B41: Acetonum
A42: 3.1. | B42: Acetonum | C42: 12 | D42: l | F42: =IF(ISBLANK(E42),"", PRODUCT(C42,E42)) -> 
E43: Suma be PVM | F43: =IF(F42="","",SUM(F42:F42)) ->  | G43: =IF(F42="","Neužpildytos visos objektų kainos","") -> Neužpildytos visos objektų kainos
E44: PVM suma
E45: Suma su PVM | F45: =IF(ISBLANK(F44), "", SUM(F43:F44)) -> 
A47: 4. | B47: Acidum aceticum
A48: 4.1. | B48: Acidum aceticum | C48: 3 | D48: l | F48: =IF(ISBLANK(E48),"", PRODUCT(C48,E48)) -> 
E49: Suma be PVM | F49: =IF(F48="","",SUM(F48:F48)) ->  | G49: =IF(F48="","Neužpildytos visos objektų kainos","") -> Neužpildytos visos objektų kainos
E50: PVM suma
E51: Suma su PVM | F51: =IF(ISBLANK(F50), "", SUM(F49:F50)) -> 
A53: 5. | B53: Acidum citricum
A54: 5.1. | B54: Acidum citricum | C54: 2 | D54: kg | F54: =IF(ISBLANK(E54),"", PRODUCT(C54,E54)) -> 
E55: Suma be PVM | F55: =IF(F54="","",SUM(F54:F54)) ->  | G55: =IF(F54="","Neužpildytos visos objektų kainos","") -> Neužpildytos visos objektų kainos
E56: PVM suma
E57: Suma su PVM | F57: =IF(ISBLANK(F56), "", SUM(F55:F56)) -> 
A59: 6. | B59: Acidum folicum
A60: 6.1. | B60: Acidum folicum | C60: 50 | D60: g | F60: =IF(ISBLANK(E60),"", PRODUCT(C60,E60)) -> 
E61: Suma be PVM | F61: =IF(F60="","",SUM(F60:F60)) ->  | G61: =IF(F60="","Neužpildytos visos objektų kainos","") -> Neužpildytos visos objektų kainos
E62: PVM suma
E63: Suma su PVM | F63: =IF(ISBLANK(F62), "", SUM(F61:F62)) -> 
A65: 7. | B65: Acidum folicum 400mcg
A66: 7.1. | B66: Acidum folicum 400mcg | C66: 2000 | D66: Tab. | F66: =IF(ISBLANK(E66),"", PRODUCT(C66,E66)) -> 
E67: Suma be PVM | F67: =IF(F66="","",SUM(F66:F66)) ->  | G67: =IF(F66="","Neužpildytos visos objektų kainos","") -> Neužpildytos visos objektų kainos
E68: PVM suma
E69: Suma su PVM | F69: =IF(ISBLANK(F68), "", SUM(F67:F68)) -> 
A71: 8. | B71: Acidum salicylicum
A72: 8.1. | B72: Acidum salicylicum | C72: 3 | D72: kg | F72: =IF(ISBLANK(E72),"", PRODUCT(C72,E72)) -> 
E73: Suma be PVM | F73: =IF(F72="","",SUM(F72:F72)) ->  | G73: =IF(F72="","Neužpildytos visos objektų kainos","") -> Neužpildytos visos objektų kainos
E74: PVM suma
E75: Suma su PVM | F75: =IF(ISBLANK(F74), "", SUM(F73:F74)) -> 
A77: 9. | B77: Adatėlės penams 0,23mm 32G x 4mm
A78: 9.1. | B78: Adatėlės penams 0,23mm 32G x 4mm | C78: 1000 | D78: Vnt. | F78: =IF(ISBLANK(E78),"", PRODUCT(C78,E78)) -> 
E79: Suma be PVM | F79: =IF(F78="","",SUM(F78:F78)) ->  | G79: =IF(F78="","Neužpildytos visos objektų kainos","") -> Neužpildytos visos objektų kainos
E80: PVM suma
E81: Suma su PVM | F81: =IF(ISBLANK(F80), "", SUM(F79:F80)) -> 
A83: 10. | B83: Aklinidino 340mcg+ Formoterolio 12mcg dozuoti įkvepiamieji milteliai 60doz.
A84: 10.1. | B84: Aklinidino 340mcg+ Formoterolio 12mcg dozuoti įkvepiamieji milteliai 60doz. | C84: 120 | D84: Doz. | F84: =IF(ISBLANK(E84),"", PRODUCT(C84,E84)) -> 
E85: Suma be PVM | F85: =IF(F84="","",SUM(F84:F84)) ->  | G85: =IF(F84="","Neužpildytos visos objektų kainos","") -> Neužpildytos visos objektų kainos
E86: PVM suma
E87: Suma su PVM | F87: =IF(ISBLANK(F86), "", SUM(F85:F86)) -> 
A89: 11. | B89: Aktyvinta anglis 200 mg
A90: 11.1. | B90: Aktyvinta anglis 200 mg | C90: 600 | D90: Tab./Kaps | F90: =IF(ISBLANK(E90),"", PRODUCT(C90,E90)) -> 
E91: Suma be PVM | F91: =IF(F90="","",SUM(F90:F90)) ->  | G91: =IF(F90="","Neužpildytos visos objektų kainos","") -> Neužpildytos visos objektų kainos
E92: PVM suma
E93: Suma su PVM | F93: =IF(ISBLANK(F92), "", SUM(F91:F92)) -> 
A95: 12. | B95: Aktyvinta anglis milteliais po 61,5g
A96: 12.1. | B96: Aktyvinta anglis milteliais po 61,5g | C96: 5 | D96: Įpak. | F96: =IF(ISBLANK(E96),"", PRODUCT(C96,E96)) -> 
E97: Suma be PVM | F97: =IF(F96="","",SUM(F96:F96)) ->  | G97: =IF(F96="","Neužpildytos visos objektų kainos","") -> Neužpildytos visos objektų kainos
E98: PVM suma
E99: Suma su PVM | F99: =IF(ISBLANK(F98), "", SUM(F97:F98)) -> 
A101: 13. | B101: Aktyvuotas protrombino koaguliacijos kompleksas 1000 TV
A102: 13.1. | B102: Aktyvuotas protrombino koaguliacijos kompleksas 1000 TV | C102: 3 | D102: But./Amp. | F102: =IF(ISBLANK(E102),"", PRODUCT(C102,E102)) -> 
E103: Suma be PVM | F103: =IF(F102="","",SUM(F102:F102)) ->  | G103: =IF(F102="","Neužpildytos visos objektų kainos","") -> Neužpildytos visos objektų kainos
E104: PVM suma
E105: Suma su PVM | F105: =IF(ISBLANK(F104), "", SUM(F103:F104)) -> 
A107: 14. | B107: Albendazolum 400mg
A108: 14.1. | B108: Albendazolum 400mg | C108: 120 | D108: Tab. | F108: =IF(ISBLANK(E108),"", PRODUCT(C108,E108)) -> 
E109: Suma be PVM | F109: =IF(F108="","",SUM(F108:F108)) ->  | G109: =IF(F108="","Neužpildytos visos objektų kainos","") -> Neužpildytos visos objektų kainos
E110: PVM suma
E111: Suma su PVM | F111: =IF(ISBLANK(F110), "", SUM(F109:F110)) -> 
A113: 15. | B113: Albuminas 200mg/ml 100 ml buteliukas
A114: 15.1. | B114: Albuminas 200mg/ml 100 ml buteliukas | C114: 60 | D114: But. | F114: =IF(ISBLANK(E114),"", PRODUCT(C114,E114)) -> 
E115: Suma be PVM | F115: =IF(F114="","",SUM(F114:F114)) ->  | G115: =IF(F114="","Neužpildytos visos objektų kainos","") -> Neužpildytos visos objektų kainos
E116: PVM suma
E117: Suma su PVM | F117: =IF(ISBLANK(F116), "", SUM(F115:F116)) -> 
A119: 16. | B119: Ambroksolis 30 mg
A120: 16.1. | B120: Ambroksolis 30 mg | C120: 35000 | D120: Tab. | E120: 0.046 | F120: =IF(ISBLANK(E120),"", PRODUCT(C120,E120)) -> 1610 | G120: Ambrolan 30mg tab.N20, GL Pharma
E121: Suma be PVM | F121: =IF(F120="","",SUM(F120:F120)) -> 1610 | G121: =IF(F120="","Neužpildytos visos objektų kainos","") -> 
E122: PVM suma | F122: 80.5
E123: Suma su PVM | F123: =IF(ISBLANK(F122), "", SUM(F121:F122)) -> 1690.5
A125: 17. | B125: Amfotericinas B liposominis 50mg
A126: 17.1. | B126: Amfotericinas B liposominis 50mg | C126: 5 | D126: Amp. | E126: 339.24 | F126: =IF(ISBLANK(E126),"", PRODUCT(C126,E126)) -> 1696.2 | G126: Amphonex 50mg inj N1, Bharat (Vardinis)
E127: Suma be PVM | F127: =IF(F126="","",SUM(F126:F126)) -> 1696.2 | G127: =IF(F126="","Neužpildytos visos objektų kainos","") -> 
E128: PVM suma | F128: 84.81
E129: Suma su PVM | F129: =IF(ISBLANK(F128), "", SUM(F127:F128)) -> 1781.01
A131: 18. | B131: Amino rūgštys + riebalinės emulsijos 1920ml (periferinis)
A132: 18.1. | B132: Amino rūgštys + riebalinės emulsijos 1920ml (periferinis) | C132: 20 | D132: Fl. | F132: =IF(ISBLANK(E132),"", PRODUCT(C132,E132)) -> 
E133: Suma be PVM | F133: =IF(F132="","",SUM(F132:F132)) ->  | G133: =IF(F132="","Neužpildytos visos objektų kainos","") -> Neužpildytos visos objektų kainos
E134: PVM suma
E135: Suma su PVM | F135: =IF(ISBLANK(F134), "", SUM(F133:F134)) -> 
A137: 19. | B137: Amoksicilinas 250 mg
A138: 19.1. | B138: Amoksicilinas 250 mg | C138: 40 | D138: kaps | F138: =IF(ISBLANK(E138),"", PRODUCT(C138,E138)) -> 
E139: Suma be PVM | F139: =IF(F138="","",SUM(F138:F138)) ->  | G139: =IF(F138="","Neužpildytos visos objektų kainos","") -> Neužpildytos visos objektų kainos
E140: PVM suma
E141: Suma su PVM | F141: =IF(ISBLANK(F140), "", SUM(F139:F140)) -> 
A143: 20. | B143: Ampicilinas 1000mg
A144: 20.1. | B144: Ampicilinas 1000mg | C144: 15000 | D144: But./Amp. | E144: 0.485 | F144: =IF(ISBLANK(E144),"", PRODUCT(C144,E144)) -> 7275 | G144: Ampitor-1000 for inj. N25, Johnlee Pharmaceuticals (Vardinis)
E145: Suma be PVM | F145: =IF(F144="","",SUM(F144:F144)) -> 7275 | G145: =IF(F144="","Neužpildytos visos objektų kainos","") -> 
E146: PVM suma | F146: 363.75
E147: Suma su PVM | F147: =IF(ISBLANK(F146), "", SUM(F145:F146)) -> 7638.75
A149: 21. | B149: Ampicilinas 1000mg + Sulbaktamas 500mg
A150: 21.1. | B150: Ampicilinas 1000mg + Sulbaktamas 500mg | C150: 4500 | D150: Amp./But. | E150: 1.02 | F150: =IF(ISBLANK(E150),"", PRODUCT(C150,E150)) -> 4590 | G150: Bestpen-S 1,5g inj. N1, Talent Healthcare (Vardinis)
E151: Suma be PVM | F151: =IF(F150="","",SUM(F150:F150)) -> 4590 | G151: =IF(F150="","Neužpildytos visos objektų kainos","") -> 
E152: PVM suma | F152: 229.5
E153: Suma su PVM | F153: =IF(ISBLANK(F152), "", SUM(F151:F152)) -> 4819.5
A155: 22. | B155: Anaesthesinum
A156: 22.1. | B156: Anaesthesinum | C156: 400 | D156: g | F156: =IF(ISBLANK(E156),"", PRODUCT(C156,E156)) -> 
E157: Suma be PVM | F157: =IF(F156="","",SUM(F156:F156)) ->  | G157: =IF(F156="","Neužpildytos visos objektų kainos","") -> Neužpildytos visos objektų kainos
E158: PVM suma
E159: Suma su PVM | F159: =IF(ISBLANK(F158), "", SUM(F157:F158)) -> 
A161: 23. | B161: Argenthi nitras
A162: 23.1. | B162: Argenthi nitras | C162: 50 | D162: g | F162: =IF(ISBLANK(E162),"", PRODUCT(C162,E162)) -> 
E163: Suma be PVM | F163: =IF(F162="","",SUM(F162:F162)) ->  | G163: =IF(F162="","Neužpildytos visos objektų kainos","") -> Neužpildytos visos objektų kainos
E164: PVM suma
E165: Suma su PVM | F165: =IF(ISBLANK(F164), "", SUM(F163:F164)) -> 
A167: 24. | B167: Barii sulfas pro rentgeno
A168: 24.1. | B168: Barii sulfas pro rentgeno | C168: 20 | D168: kg | F168: =IF(ISBLANK(E168),"", PRODUCT(C168,E168)) -> 
E169: Suma be PVM | F169: =IF(F168="","",SUM(F168:F168)) ->  | G169: =IF(F168="","Neužpildytos visos objektų kainos","") -> Neužpildytos visos objektų kainos
E170: PVM suma
E171: Suma su PVM | F171: =IF(ISBLANK(F170), "", SUM(F169:F170)) -> 
A173: 25. | B173: Bemiparino natrio druska 2500 TV anti- Xa/0,2ml injekcijoms
A174: 25.1. | B174: Bemiparino natrio druska 2500 TV anti- Xa/0,2ml injekcijoms | C174: 18000 | D174: Užtaisas | F174: =IF(ISBLANK(E174),"", PRODUCT(C174,E174)) -> 
E175: Suma be PVM | F175: =IF(F174="","",SUM(F174:F174)) ->  | G175: =IF(F174="","Neužpildytos visos objektų kainos","") -> Neužpildytos visos objektų kainos
E176: PVM suma
E177: Suma su PVM | F177: =IF(ISBLANK(F176), "", SUM(F175:F176)) -> 
A179: 26. | B179: Bemiparino natrio druska 3500 TV anti- Xa/0,2ml injekcijoms
A180: 26.1. | B180: Bemiparino natrio druska 3500 TV anti- Xa/0,2ml injekcijoms | C180: 18000 | D180: Užtaisas | F180: =IF(ISBLANK(E180),"", PRODUCT(C180,E180)) -> 
E181: Suma be PVM | F181: =IF(F180="","",SUM(F180:F180)) ->  | G181: =IF(F180="","Neužpildytos visos objektų kainos","") -> Neužpildytos visos objektų kainos
E182: PVM suma
E183: Suma su PVM | F183: =IF(ISBLANK(F182), "", SUM(F181:F182)) -> 
A185: 27. | B185: Benfotiaminas 100mg + Piridoksinas (B6) 100mg + Cianokobalaminas 1000mcg amp.
A186: 27.1. | B186: Benfotiaminas 100mg + Piridoksinas (B6) 100mg + Cianokobalaminas 1000mcg amp. | C186: 100 | D186: Amp. | F186: =IF(ISBLANK(E186),"", PRODUCT(C186,E186)) -> 
E187: Suma be PVM | F187: =IF(F186="","",SUM(F186:F186)) ->  | G187: =IF(F186="","Neužpildytos visos objektų kainos","") -> Neužpildytos visos objektų kainos
E188: PVM suma
E189: Suma su PVM | F189: =IF(ISBLANK(F188), "", SUM(F187:F188)) -> 
A191: 28. | B191: Benzatino penicilinas 2400000 TV
A192: 28.1. | B192: Benzatino penicilinas 2400000 TV | C192: 30 | D192: But./Amp. | F192: =IF(ISBLANK(E192),"", PRODUCT(C192,E192)) -> 
E193: Suma be PVM | F193: =IF(F192="","",SUM(F192:F192)) ->  | G193: =IF(F192="","Neužpildytos visos objektų kainos","") -> Neužpildytos visos objektų kainos
E194: PVM suma
E195: Suma su PVM | F195: =IF(ISBLANK(F194), "", SUM(F193:F194)) -> 
A197: 29. | B197: Benzilpenicilinas 1000000 TV
A198: 29.1. | B198: Benzilpenicilinas 1000000 TV | C198: 30000 | D198: But. | E198: 0.37 | F198: =IF(ISBLANK(E198),"", PRODUCT(C198,E198)) -> 11100 | G198: Crispen-10 1.000.000 IU inj. (IM/IV) N50, Vysali Pharma (Vardinis)
E199: Suma be PVM | F199: =IF(F198="","",SUM(F198:F198)) -> 11100 | G199: =IF(F198="","Neužpildytos visos objektų kainos","") -> 
E200: PVM suma | F200: 555
E201: Suma su PVM | F201: =IF(ISBLANK(F200), "", SUM(F199:F200)) -> 11655
A203: 30. | B203: Betainas su poliheksanidu 350ml
A204: 30.1. | B204: Betainas su poliheksanidu 350ml | C204: 320 | D204: Fl. | F204: =IF(ISBLANK(E204),"", PRODUCT(C204,E204)) -> 
E205: Suma be PVM | F205: =IF(F204="","",SUM(F204:F204)) ->  | G205: =IF(F204="","Neužpildytos visos objektų kainos","") -> Neužpildytos visos objektų kainos
E206: PVM suma
E207: Suma su PVM | F207: =IF(ISBLANK(F206), "", SUM(F205:F206)) -> 
A209: 31. | B209: Bolus alba
A210: 31.1. | B210: Bolus alba | C210: 2 | D210: kg | F210: =IF(ISBLANK(E210),"", PRODUCT(C210,E210)) -> 
E211: Suma be PVM | F211: =IF(F210="","",SUM(F210:F210)) ->  | G211: =IF(F210="","Neužpildytos visos objektų kainos","") -> Neužpildytos visos objektų kainos
E212: PVM suma
E213: Suma su PVM | F213: =IF(ISBLANK(F212), "", SUM(F211:F212)) -> 
A215: 32. | B215: Botulizmo antitoksinas infuz tirp. 250ml Fl.
A216: 32.1. | B216: Botulizmo antitoksinas infuz tirp. 250ml Fl. | C216: 2 | D216: Fl. | E216: 3300 | F216: =IF(ISBLANK(E216),"", PRODUCT(C216,E216)) -> 6600 | G216: Antytoksyna botulinowa ABE 10ml N1, Biomed (Vardinis)
E217: Suma be PVM | F217: =IF(F216="","",SUM(F216:F216)) -> 6600 | G217: =IF(F216="","Neužpildytos visos objektų kainos","") -> 
E218: PVM suma | F218: 330
E219: Suma su PVM | F219: =IF(ISBLANK(F218), "", SUM(F217:F218)) -> 6930
A221: 33. | B221: Bupivakainas 0,5% 10ml (tinka spinalinei anestezijai)
A222: 33.1. | B222: Bupivakainas 0,5% 10ml (tinka spinalinei anestezijai) | C222: 400 | D222: Amp. | F222: =IF(ISBLANK(E222),"", PRODUCT(C222,E222)) -> 
E223: Suma be PVM | F223: =IF(F222="","",SUM(F222:F222)) ->  | G223: =IF(F222="","Neužpildytos visos objektų kainos","") -> Neužpildytos visos objektų kainos
E224: PVM suma
E225: Suma su PVM | F225: =IF(ISBLANK(F224), "", SUM(F223:F224)) -> 
A227: 34. | B227: Burnos gelis 12 % nuo burnos pažeidimų. Sudėtis: ( vandens, polivinilo pirolidono (PVP), maltodekstrino, propeno glikolio, PEG-40 hidrinto ricinos aliejaus, ksantano dervos, kalio sorbato, natrio benzoato, natrio hialuronato, kvapiųjų medžiagų, benzalkonio chlorido, dinatrio EDTA, natrio sacharino, dikalio glicirizato, tikrojo alavijo (Aloe barbadensis.
A228: 34.1. | B228: Burnos gelis 12 % nuo burnos pažeidimų. Sudėtis: ( vandens, polivinilo pirolidono (PVP), maltodekstrino, propeno glikolio, PEG-40 hidrinto ricinos aliejaus, ksantano dervos, kalio sorbato, natrio benzoato, natrio hialuronato, kvapiųjų medžiagų, benzalkonio chlorido, dinatrio EDTA, natrio sacharino, dikalio glicirizato, tikrojo alavijo (Aloe barbadensis. | C228: 80 | D228: ml | F228: =IF(ISBLANK(E228),"", PRODUCT(C228,E228)) -> 
E229: Suma be PVM | F229: =IF(F228="","",SUM(F228:F228)) ->  | G229: =IF(F228="","Neužpildytos visos objektų kainos","") -> Neužpildytos visos objektų kainos
E230: PVM suma
E231: Suma su PVM | F231: =IF(ISBLANK(F230), "", SUM(F229:F230)) -> 
A233: 35. | B233: Butyrum cacao
A234: 35.1. | B234: Butyrum cacao | C234: 1 | D234: kg | F234: =IF(ISBLANK(E234),"", PRODUCT(C234,E234)) -> 
E235: Suma be PVM | F235: =IF(F234="","",SUM(F234:F234)) ->  | G235: =IF(F234="","Neužpildytos visos objektų kainos","") -> Neužpildytos visos objektų kainos
E236: PVM suma
E237: Suma su PVM | F237: =IF(ISBLANK(F236), "", SUM(F235:F236)) -> 
A239: 36. | B239: Calcii carbonas
A240: 36.1. | B240: Calcii carbonas | C240: 4 | D240: kg | F240: =IF(ISBLANK(E240),"", PRODUCT(C240,E240)) -> 
E241: Suma be PVM | F241: =IF(F240="","",SUM(F240:F240)) ->  | G241: =IF(F240="","Neužpildytos visos objektų kainos","") -> Neužpildytos visos objektų kainos
E242: PVM suma
E243: Suma su PVM | F243: =IF(ISBLANK(F242), "", SUM(F241:F242)) -> 
A245: 37. | B245: Cefoperazonas + Sulbaktamas 1000mg/1000mg injekcijoms
A246: 37.1. | B246: Cefoperazonas + Sulbaktamas 1000mg/1000mg injekcijoms | C246: 10 | D246: But./Amp. | E246: 15 | F246: =IF(ISBLANK(E246),"", PRODUCT(C246,E246)) -> 150 | G246: ZON-FH 2 powder for inj. 2g N1, Florencia Healthcare (Vardinis)
E247: Suma be PVM | F247: =IF(F246="","",SUM(F246:F246)) -> 150 | G247: =IF(F246="","Neužpildytos visos objektų kainos","") -> 
... 1087 more rows

Sheet Subtiekėjai
A2: Subtiekėjai ir jiems perduodama vykdyti pirkimo sutarties dalis:
A4: Eil. Nr | C4: Subtiekėjo pavadinimas | F4: Pirkimo objekto dalies, perduodamos vykdyti subtiekėjui, aprašymas | I4: Procentas perduodamos vykdyti pirkimo objekto dalies nuo pasiūlymo kainos su PVM (pildoma, jei ūkio subjektas vykdys sutartį)
A11: Kartu su pasiūlymu pateikiami šie dokumentai:
A13: Eil.Nr. | B13: Dokumentas | E13: Ar dokumnetas konfidencialus? (Taip/Ne) | G13: Prisegtos bylos (failo) pavadinimas | I13: Paaiškinimas, kokia konkreti informacija dokumente yra konfidenciali
A14: 1 | B14: EBVPD | E14: Taip
A15: 2 | B15: Įgaliojimas | E15: Taip
A20: Pasirašydamas šį pasiūlymą, tvirtintu, kad: 1) pasiūlymo dokumentuose pateikti duomenys yra tikri; 2) siūlomas Pirkimo objektas visiškai atitinka Pirkimo dokumentuose nustatytus reikalavimus; 3) sutinku su visomis Pirkimo dokumentuose nustatytomis sąlygomis; 4) pasiūlymas galioja iki termino, nustatyto Pirkimo dokumentuose; 5) mes esame / nesame (nereikalingą išbraukti) laikomi asocijuotais (susijusiais) su Perkančiuoju subjektu pagal Lietuvos Respublikoje galiojančių teisės aktų (Lietuvos Respublikos pelno mokesčio, Lietuvos Respublikos pridėtinės vertės mokesčio ir Lietuvos Respublikos gyventojų pajamų mokesčio įstatymų) nuostatas; 6) savo pasiūlymo galiojimą užtikrinsiu pagal Specialiųjų sąlygų 6.1 punktą (jei taikoma).
A22: Pasiūlymo galiojimo užtikrinimui pateikiame :
A24: (Nurodyti užtikrinimo būdą, dydį, dokumentus)
A26: Pasiūlymas galioja iki termino, nustatyto pirkimo dokumentuose. Pasiūlymo neatskiriama dalis yra (rašoma, jeigu buvo reikalauta prie pasiūlymo pridėti atitinkamą dokumentą)
A30: Tiekėjo arba jo įgalioto asmens pareigų pavadinimas | E30: Konkursų skyriaus vadovas
A33: Pasirašančio asmens vardas ir pavardė | E33: Aurimas Kirkliauskas
A100: 2932 2019-11-25 11:11:09
